Cogmind - Beta 14 @@@ ROGUE MODE // 2025.03.07 @ 19:55:11 Player: canerib Result: Self-destructed Performance ------------- Evolutions (5) 2500 Regions Visited (8) 1600 Robots Destroyed (43) 215 Value Destroyed (1335) 1335 Prototype IDs (6) 120 Alien Tech Used (0) 0 Bonus (500) 500 TOTAL SCORE: 6270 Bonus ------- High Alert Combat Kills 73 Follower Combat Kills 427 Cogmind --------- Core Integrity 831/1000 Matter 300/300 Energy 231/310 System Corruption 12% Temperature Cool (18) Movement Treading (160) Location -5/Upper Caves Parts ------- > --- POWER (2) -------- Reinforced Fission Core > --- PROPULSION (7) --- Improved Treads Improved Treads VTOL Module > --- UTILITY (4) ------ Advanced Heat Sink Enhanced Optical Array Force Booster > --- WEAPON (4) ------- Power Maul Power Maul Falx > --- INVENTORY (5) ---- Heat Sink Improved Signal Interpreter Transmission Jammer System Shield Peak State ------------ > --- POWER ------------ Light Deuterium Engine Reinforced Fission Core > --- PROPULSION ------- Improved Treads Improved Treads Carbon-fiber Leg Carbon-fiber Leg Wheel Wheel Compact Wheel > --- UTILITY ---------- Advanced Heat Sink Enhanced Optical Array Force Booster Improved Light Armor Plating > --- WEAPON ----------- Power Maul Power Maul Falx > --- INVENTORY -------- Heat Sink Improved Signal Interpreter Transmission Jammer [Rating: 52] Favorites ----------- Power Cooled Ion Engine Engine Cooled Ion Engine Power Core Reinforced Fission Core Propulsion Aluminum Leg Treads Improved Treads Leg Aluminum Leg Wheel Wheel Flight Unit Cesium-ion Thruster Utility Small Storage Unit Device Sensor Array Storage Small Storage Unit Processor Enhanced Optical Array Hackware System Shield Protection Improved Light Armor Plating Weapon Power Maul Energy Gun Small Laser Launcher Grenade Launcher Special Weapon Mining Laser Impact Weapon Power Maul Slashing Weapon Falx Build | -11 -10 -9 -9 -8 -7 -6 -5 -5 ------- Run | Yrd Mat Mat Sto Mat Fac Fac Fac Upp Slots Evolved 10 | . . 2 . 2 2 2 2 . Power 1 | . . . . . . 1 . . Propulsion 5 | . . 2 . 1 1 . 1 . Utility 2 | . . . . 1 1 . . . Weapon 2 | . . . . . . 1 1 . Parts Attached 65 | 8 9 3 11 10 3 3 15 3 Power 10 | 1 1 . 3 . 2 . 3 . Engine 8 | 1 1 . 3 . 1 . 2 . Core 2 | . . . . . 1 . 1 . Reactor . | . . . . . . . . . Propulsion 27 | 3 3 2 4 5 . . 9 1 Treads 2 | . . . . . . . 2 . Leg 14 | 3 3 2 4 . . . 2 . Wheel 5 | . . . . . . . 5 . Hover . | . . . . . . . . . Flight 6 | . . . . 5 . . . 1 Utility 11 | 2 . 1 . 2 1 1 2 2 Device 6 | 1 . 1 . 1 . . 2 1 Storage 1 | 1 . . . . . . . . Processor 1 | . . . . . . 1 . . Hackware 1 | . . . . . 1 . . . Protection 2 | . . . . 1 . . . 1 Artifact . | . . . . . . . . . Weapon 17 | 2 5 . 4 3 . 2 1 . Energy Gun 9 | 2 4 . 3 . . . . . Energy Cannon . | . . . . . . . . . Ballistic Gun . | . . . . . . . . . Ballistic Cannon . | . . . . . . . . . Launcher 2 | . . . 1 1 . . . . Special Weapon 1 | . 1 . . . . . . . Impact Weapon 4 | . . . . 2 . 2 . . Slashing Weapon 1 | . . . . . . . 1 . Piercing Weapon . | . . . . . . . . . Special Melee Weapon . | . . . . . . . . . Unidentified Prototypes 6 | . . . 4 2 . . . . Parts Lost 25 | . 1 . 3 1 2 5 6 7 Power 4 | . 1 . . . . 1 1 1 Propulsion 14 | . . . 2 . 1 4 2 5 Utility 5 | . . . . 1 1 . 2 1 Weapon 2 | . . . 1 . . . 1 . Highest Loss Streak 7 | . 1 . 1 1 2 7 6 4 To Critical Strikes . | . . . . . . . . . Average Slot Usage (%) 86 | . 98 100 94 91 88 53 56 75 Engine 8 | . 13 11 11 9 5 . 3 1 Treads 1 | . . . . . . . . 11 Leg 23 | . 28 44 41 . . . 2 6 Wheel 2 | . . . . . . . 12 5 Flight 7 | . . . . 42 38 13 . 1 Device 9 | . 14 11 11 8 7 . 2 11 Storage 9 | . 14 11 11 9 7 6 4 . Processor 1 | . . . . . . 6 5 5 Protection 1 | . . . . 8 7 . . 5 Energy Gun 10 | . 27 22 12 4 . . . . Launcher 2 | . . . 6 . . . . . Impact Weapon 5 | . . . . 9 13 20 15 11 Peak Build Rating 52 | 7 7 11 15 33 37 39 46 52 Average Rating 20 | 4 6 10 13 28 34 28 31 46 On Entrance 18 | . 7 7 11 14 33 27 20 46 Naked Turns . | . . . . . . . . . Heaviest Build 45 | 11 13 13 20 23 23 20 42 45 Greatest Support 46 | 20 20 40 40 25 25 20 46 46 Greatest Overweight (x) 4 | . . . . . . 4 4 . Average Overweight (x) . | . . . . . . . 1 . Largest Inventory Capacity 8 | 8 8 8 8 8 8 8 8 5 Average Capacity 7 | 6 8 8 8 8 8 8 7 5 Most Carried 8 | 5 8 8 8 8 8 8 8 4 Average Carried 6 | 2 7 7 7 4 7 7 7 3 Final Capacity 8 | 8 8 8 8 8 8 8 5 5 Final Carried 8 | 4 8 8 8 8 7 8 5 4 Class Distribution -------------------- 39% | Scavenger-Mutant 32% | Mutant 15% | Sprinter 7% | Gladiator 3% | Scavenger-Gladiator Dominant Class ---------------- Mutant | -10/Materials Scavenger-Mutant | -9/Materials Scavenger-Mutant | -9/Storage Sprinter | -8/Materials Sprinter | -7/Factory Mutant | -6/Factory Mutant | -5/Factory Gladiator | -5/Upper Caves Resources | -11 -10 -9 -9 -8 -7 -6 -5 -5 ----------- Run | Yrd Mat Mat Sto Mat Fac Fac Fac Upp Matter Collected 1032 | 276 71 . 378 88 7 . 175 37 Remotely . | . . . . . . . . . Salvage Created 1424 | 41 306 . 451 88 . 48 359 131 Parts 84 | 4 18 . 33 4 . . 17 8 Haulers Intercepted 1 | . . . 1 . . . . . Recyclers Shooed . | . . . . . . . . . Parts Field Recycled . | . . . . . . . . . Retrieved Matter . | . . . . . . . . . Parts Self-Destructed 7 | . . . . . . . . 7 Prevented . | . . . . . . . . . Kills | -11 -10 -9 -9 -8 -7 -6 -5 -5 ------- Run | Yrd Mat Mat Sto Mat Fac Fac Fac Upp Combat Hostiles Destroyed 33 | . 7 . 13 2 . 1 5 5 Melee 10 | . . . . . . . 5 5 Guns 9 | . 7 . 2 . . . . . AOE 11 | . . . 11 . . . . . Classes Destroyed 12 | 1 2 . 7 1 . . 1 . Worker 3 | . . . 2 . . . 1 . Builder 1 | . . . . . . . 1 . Tunneler 2 | 2 . . . . . . . . Hauler 1 | . . . 1 . . . . . Recycler 1 | . . . 1 . . . . . Watcher 2 | . 1 . 1 . . . . . Swarmer 7 | . . . 2 . . . . 5 Grunt 17 | . 7 . 6 . . 1 3 . Brawler 2 | . . . 1 . . . 1 . Protector 1 | . . . 1 . . . . . Sentry 5 | . . . 3 1 . . 1 . Hunter 1 | . . . . 1 . . . . Best Kill Streak 9 | 2 3 . 9 1 . 1 4 3 Combat Bots Only 6 | . 3 . 6 1 . 1 3 3 Max Kills in Single Turn 4 | 1 1 . 4 1 . 1 1 2 Gunslinging . | . . . . . . . . . Exploded 2 | . . . 2 . . . . . Melee 2 | . . . . . . . 1 2 Uniques/NPCs Destroyed . | . . . . . . . . . Combat | -11 -10 -9 -9 -8 -7 -6 -5 -5 -------- Run | Yrd Mat Mat Sto Mat Fac Fac Fac Upp Hostile Shots Fired 291 | . 32 7 56 18 35 51 34 58 Missed 98 | . 5 . 28 9 22 15 5 14 Damage Taken 3223 | . 323 76 515 142 279 445 735 708 Core 558 | . 83 11 76 15 68 136 132 37 Absorbed by Shields . | . . . . . . . . . Regen/Repaired (Parts) 31 | . 31 . . . . . . . Core Remaining (%) 85 | 100 66 . 78 97 90 84 . . Volleys Fired 54 | 3 26 . 25 . . . . . Largest 2 | 2 2 . 2 . . . . . Hottest 100 | 80 100 . 86 . . . . . Shots Fired 105 | 6 51 . 48 . . . . . Gun 81 | 6 50 . 25 . . . . . Cannon . | . . . . . . . . . Launcher 23 | . . . 23 . . . . . Special 1 | . 1 . . . . . . . Kinetic . | . . . . . . . . . Thermal 82 | 6 51 . 25 . . . . . Explosive 23 | . . . 23 . . . . . Electromagnetic . | . . . . . . . . . Robot Hit Streak 19 | 5 19 . 5 . . . . . Robot Miss Streak 3 | 1 2 . 3 . . . . . Penetration Max . | . . . . . . . . . Secondary Targets . | . . . . . . . . . Shots Hit Robots 110 | 5 37 . 22 4 . 6 28 8 Core Hits 74 | 2 16 . 41 . . 1 10 4 Critical Kills 1 | . . . . . . . 1 . Critical Parts Destroyed 4 | . . . . 2 . 1 1 . Critical Strikes 13 | . . . 3 2 . 1 7 . Burn 3 | . . . 3 . . . . . Smash 5 | . . . . 2 . 1 2 . Sever 5 | . . . . . . . 5 . Melee Attacks 67 | . . . . 5 . 9 32 21 Impact 30 | . . . . 5 . 9 12 4 Slashing 37 | . . . . . . . 20 17 Piercing . | . . . . . . . . . Sneak Attacks 2 | . . . . . . . 2 . Combat Hostiles . | . . . . . . . . . Follow-up Attacks 15 | . . . . . . 2 10 3 Damage Inflicted 4050 | 56 427 . 1477 185 . 306 1210 389 Guns 662 | 56 427 . 179 . . . . . Cannons . | . . . . . . . . . Explosions 1298 | . . . 1298 . . . . . Melee 2090 | . . . . 185 . 306 1210 389 Ramming . | . . . . . . . . . Kinetic . | . . . . . . . . . Thermal 662 | 56 427 . 179 . . . . . Explosive 1298 | . . . 1298 . . . . . Electromagnetic . | . . . . . . . . . Impact 1065 | . . . . 185 . 306 488 86 Slashing 1025 | . . . . . . . 722 303 Piercing . | . . . . . . . . . Highest Corruption 12 | . . . . . . . 12 12 Average Corruption 11 | . . . . . . . 10 12 Corruption Purged . | . . . . . . . . . Corruption Blocked . | . . . . . . . . . Effects 12 | . . . . . . . 2 10 Message Errors 2 | . . . . . . . . 2 Matter Fused 5 | . . . . . . . . 5 Heat Flow Errors 2 | . . . . . . . 2 . Energy Discharges 1 | . . . . . . . . 1 Data Loss (minor) 1 | . . . . . . . . 1 Data Loss (major) 1 | . . . . . . . . 1 Overload Shots . | . . . . . . . . . Overflow Damage 230 | . . . 4 95 . 58 42 31 Projectiles . | . . . . . . . . . Explosions 4 | . . . 4 . . . . . Melee 226 | . . . . 95 . 58 42 31 Knockbacks 6 | . . . . 1 . 2 2 1 Impact 5 | . . . . 1 . 2 1 1 Kinetic . | . . . . . . . . . Secondary 1 | . . . . . . . 1 . Self-Inflicted Damage 86 | . . . 86 . . . . . Shots 4 | . . . 4 . . . . . Rammed . | . . . . . . . . . Targets Rammed . | . . . . . . . . . Kicked . | . . . . . . . . . Crushed . | . . . . . . . . . Highest Temperature 262 | 36 262 . 72 4 4 . 197 . Average Temperature 56 | 18 92 . 25 2 4 . 89 . Received Heat Transfer 918 | . 177 42 180 18 63 177 171 90 Siege Activations . | . . . . . . . . . Robots Corrupted 3 | . . . . 2 . 1 . . Combat Hostiles 3 | . . . . 2 . 1 . . Parts Fried 2 | . . . . 1 . 1 . . Impact Corruptions 7 | . . . . 3 . 3 1 . Robots Melted . | . . . . . . . . . Combat Hostiles . | . . . . . . . . . Parts Melted 4 | . 4 . . . . . . . Heat Transferred 1671 | 125 950 . 596 . . . . . Parts Sabotaged . | . . . . . . . . . Parts Stolen . | . . . . . . . . . Parts Stripped . | . . . . . . . . . Power Chain Reactions . | . . . . . . . . . Alert | -11 -10 -9 -9 -8 -7 -6 -5 -5 ------- Run | Yrd Mat Mat Sto Mat Fac Fac Fac Upp Peak Influence 682 | 10 232 . 682 442 265 154 159 . Initial 274 | . 6 . . 274 200 124 74 . Average 255 | 2 104 . 446 348 202 126 108 . Maximum Alert Level 2 | . 1 . 2 2 1 . . . Low Security (%) 49 | 100 82 100 15 . 23 100 100 . Level 1 24 | . 17 . 20 71 76 . . . Level 2 26 | . . . 64 28 . . . . Level 3 . | . . . . . . . . . Level 4 . | . . . . . . . . . Level 5 . | . . . . . . . . . High Security . | . . . . . . . . . Max Security . | . . . . . . . . . Squads Dispatched 13 | . 2 . 3 4 4 . . . Investigation 4 | . . . . 3 1 . . . Extermination . | . . . . . . . . . Reinforcement 7 | . 2 . 1 1 3 . . . Assault 2 | . . . 2 . . . . . Garrison . | . . . . . . . . . Intercept . | . . . . . . . . . Searches Triggered . | . . . . . . . . . Construction Impeded . | . . . . . . . . . Haulers Reinforced . | . . . . . . . . . Active Scanning Responses . | . . . . . . . . . Cargo Convoy Interrupts . | . . . . . . . . . Stealth | -11 -10 -9 -9 -8 -7 -6 -5 -5 --------- Run | Yrd Mat Mat Sto Mat Fac Fac Fac Upp Distress Signals 4 | . 1 . 2 . 1 . . . Communications Jammed . | . . . . . . . . . Distress Signals . | . . . . . . . . . Times Spotted 114 | . 15 1 38 11 28 4 6 11 Peak Tracking Total 21 | . 4 1 10 5 21 2 4 5 Tactical Retreats 8 | . 1 . 2 . 2 1 . 2 Traps | -11 -10 -9 -9 -8 -7 -6 -5 -5 ------- Run | Yrd Mat Mat Sto Mat Fac Fac Fac Upp Traps Triggered 4 | . 2 . 1 1 . . . . Indirectly . | . . . . . . . . . Trap Hack Attempts . | . . . . . . . . . Triggered . | . . . . . . . . . Disarmed . | . . . . . . . . . Reprogrammed . | . . . . . . . . . Reused . | . . . . . . . . . Traps Extracted . | . . . . . . . . . Installed . | . . . . . . . . . Triggered . | . . . . . . . . . Machines | -11 -10 -9 -9 -8 -7 -6 -5 -5 ---------- Run | Yrd Mat Mat Sto Mat Fac Fac Fac Upp Machines Disabled 3 | . . . 3 . . . . . Max in Single Turn 1 | . . . 1 . . . . . Machines Repaired . | . . . . . . . . . Machines Dismantled . | . . . . . . . . . Machines Sabotaged . | . . . . . . . . . Overloaded Fab Kills . | . . . . . . . . . Hacking | -11 -10 -9 -9 -8 -7 -6 -5 -5 --------- Run | Yrd Mat Mat Sto Mat Fac Fac Fac Upp Machines Accessed 21 | . 5 1 5 5 4 1 . . Terminals 16 | . 3 1 5 4 3 . . . Fabricators 2 | . . . . . 1 1 . . Repair Stations 2 | . 1 . . 1 . . . . Recycling Units 1 | . 1 . . . . . . . Scanalyzers . | . . . . . . . . . Garrison Access . | . . . . . . . . . Total Hacks 59 | . 21 2 8 15 12 1 . . Successful 27 | . 10 . 4 8 5 . . . Failed 32 | . 11 2 4 7 7 1 . . Catastrophic 9 | . 2 . 2 1 4 . . . Database Lockouts . | . . . . . . . . . Manual 33 | . 11 2 3 10 5 2 . . Terminals 46 | . 12 2 8 13 11 . . . Fabricators 2 | . . . . . 1 1 . . Repair Stations 6 | . 4 . . 2 . . . . Recycling Units 5 | . 5 . . . . . . . Scanalyzers . | . . . . . . . . . Garrison Access . | . . . . . . . . . Terminal Hacks 10 | . 2 . 4 2 2 . . . Open Door 1 | . . . 1 . . . . . Branch Access Points 2 | . . . 1 1 . . . . Alert Level 2 | . 1 . . . 1 . . . Unreport Threat 2 | . 1 . . . 1 . . . Transport Status 1 | . . . 1 . . . . . Recall Investigation 2 | . . . 1 1 . . . . Fabricator Hacks 1 | . . . . . 1 . . . Build 1 | . . . . . 1 . . . Repair Station Hacks 3 | . 2 . . 1 . . . . Scan Component 2 | . 1 . . 1 . . . . Repair 1 | . 1 . . . . . . . Recycling Unit Hacks 4 | . 4 . . . . . . . Recycle Component 1 | . 1 . . . . . . . Process 1 | . 1 . . . . . . . Report Inventory 1 | . 1 . . . . . . . Retrieve Matter 1 | . 1 . . . . . . . Scanalyzer . | . . . . . . . . . Garrison Access Hacks . | . . . . . . . . . Unauthorized Hacks 9 | . 2 . . 5 2 . . . Terminals 9 | . 2 . . 5 2 . . . Assimilate 2 | . . . . 2 . . . . Botnet 7 | . 2 . . 3 2 . . . Fabricators . | . . . . . . . . . Repair Stations . | . . . . . . . . . Recycling Units . | . . . . . . . . . Scanalyzers . | . . . . . . . . . Garrison Access . | . . . . . . . . . Data Cores Recovered . | . . . . . . . . . Used . | . . . . . . . . . Hacking Detections 18 | . 5 1 4 5 3 . . . Full Trace Events 3 | . 1 . . 1 1 . . . Feedback Events . | . . . . . . . . . Feedback Blocked . | . . . . . . . . . Robot Schematics Acquired . | . . . . . . . . . Robots Built . | . . . . . . . . . Authchips . | . . . . . . . . . Time . | . . . . . . . . . Total Robot Build Rating . | . . . . . . . . . Part Schematics Acquired . | . . . . . . . . . Parts Built 2 | . . . . . 2 . . . Authchips . | . . . . . . . . . Time 84 | . . . . . 84 . . . Total Part Build Rating 8 | . . . . . 8 . . . Parts Repaired 1 | . 1 . . . . . . . Time 26 | . 26 . . . . . . . Parts Recycled 1 | . 1 . . . . . . . Recycled Matter 6 | . 6 . . . . . . . Retrieved Matter 6 | . 6 . . . . . . . Retrieved Components . | . . . . . . . . . Parts Scanalyzed . | . . . . . . . . . Part Schematics Acquired . | . . . . . . . . . Parts Damaged . | . . . . . . . . . Bothacking | -11 -10 -9 -9 -8 -7 -6 -5 -5 ------------ Run | Yrd Mat Mat Sto Mat Fac Fac Fac Upp Used RIF Installer . | . . . . . . . . . Robots Hacked . | . . . . . . . . . Non-combat . | . . . . . . . . . Combat . | . . . . . . . . . Robot Hacks Applied . | . . . . . . . . . Relay Couplers Released . | . . . . . . . . . Fabnet Peak Effective % . | . . . . . . . . . Robots Rewired . | . . . . . . . . . Allies Hacked . | . . . . . . . . . Hacks Repelled . | . . . . . . . . . Allies | -11 -10 -9 -9 -8 -7 -6 -5 -5 -------- Run | Yrd Mat Mat Sto Mat Fac Fac Fac Upp Total Allies 13 | . . . 12 1 . . . . Largest Group 10 | . . . 10 1 . . . . Highest-Rated Group 88 | . . . 88 10 . . . . Highest-Rated Ally 31 | . . . 31 10 . . . . Total Orders 1 | . . . . 1 . . . . ROAM 1 | . . . . 1 . . . . Ally Attacks 65 | . . . 65 . . . . . Total Damage 779 | . . . 779 . . . . . Kills 16 | . . . 16 . . . . . Allies Corrupted 1 | . . . 1 . . . . . Allies Melted . | . . . . . . . . . Intel | -11 -10 -9 -9 -8 -7 -6 -5 -5 ------- Run | Yrd Mat Mat Sto Mat Fac Fac Fac Upp Robot Analysis Total . | . . . . . . . . . Derelict Logs Recovered . | . . . . . . . . . Drone Launches . | . . . . . . . . . Drone Recoveries . | . . . . . . . . . Exploration | -11 -10 -9 -9 -8 -7 -6 -5 -5 ------------- Run | Yrd Mat Mat Sto Mat Fac Fac Fac Upp Turns Passed 2303 | 69 431 97 798 149 208 83 250 218 Spaces Moved 1960 | 43 235 72 552 301 462 86 109 100 Core 39 | 15 . . . . . 3 21 . Treads 106 | . . . . . . . 6 100 Legs 894 | 28 235 72 552 . . . 7 . Wheels 75 | . . . . . . . 75 . Hover . | . . . . . . . . . Flight 846 | . . . . 301 462 83 . . Fastest Speed 24 | 50 120 120 120 24 24 27 80 160 Average Speed 82 | 95 120 120 120 24 24 67 133 160 Slowest Speed 260 | 120 120 120 120 24 27 250 260 160 Overloaded Moves . | . . . . . . . . . Propulsion Burnouts . | . . . . . . . . . Robots Hopped 15 | . . . . . 15 . . . Cave-ins Triggered . | . . . . . . . . . Exploration Rate (%) 25 | 4 49 9 91 26 20 4 3 21 Regions Visited 8 Branch Regions 2 Pre-discovered Areas . | . . . . . . . . . Known Exits Taken . | . . . . . . . . . Unknown Exits Taken 8 | 1 1 1 1 1 1 1 1 . Scrap Searched 1 | . . . . . . . . 1 Spaces Dug 1 | . 1 . . . . . . . Terrain Destroyed 163 | . 1 . 162 . . . . . Melee . | . . . . . . . . . Projectile 1 | . 1 . . . . . . . AOE 162 | . . . 162 . . . . . Terrain Rammed . | . . . . . . . . . Walls Destroyed . | . . . . . . . . . Machines Disabled . | . . . . . . . . . Actions | -11 -10 -9 -9 -8 -7 -6 -5 -5 --------- Run | Yrd Mat Mat Sto Mat Fac Fac Fac Upp Total 2418 | 64 337 84 641 368 545 99 159 121 Wait 223 | . 41 . 38 42 88 . 14 . Move 1929 | 42 234 71 551 300 438 85 108 100 Hop 8 | . . . . . 8 . . . Pick Up 52 | 11 19 6 4 5 3 2 1 1 Fast Attach 24 | . . . 5 3 1 1 13 1 Attach 35 | 7 7 3 3 7 2 2 2 2 Detach 5 | . . . . 2 1 2 . . Swap 6 | 1 2 . 3 . . . . . Drop 30 | . 8 4 9 4 4 1 . . Fire 54 | 3 26 . 25 . . . . . Melee 49 | . . . . 5 . 6 21 17 Ram . | . . . . . . . . . Kick . | . . . . . . . . . Crush . | . . . . . . . . . Escape Stasis . | . . . . . . . . . Rewire 3 | . . . 3 . . . . . Trap . | . . . . . . . . . Miscellaneous . | . . . . . . . . . Route ------- -11/Scrapyard -10/Materials -9/Materials -9/Storage (discovered 2 exits: *Mat / Rec) -8/Materials -7/Factory -6/Factory (discovered 2 exits: [*Fac] / [*Low]) -5/Factory -5/Upper Caves History --------- Turn | Location | Event 11 | -11/Scrapyard | Discovered new exit (range 16) 70 | -11/Scrapyard | Entered Materials 315 | -10/Materials | Build established: Mutant 335 | -10/Materials | Discovered new exit (range 7) 447 | -10/Materials | Repaired Aluminum Leg 501 | -10/Materials | Entered another Materials area 501 | -9/Materials | Evolved 2 slots: Propulsion x2 505 | -9/Materials | Discovered new exit (range 4) 598 | -9/Materials | Entered Storage 654 | -9/Storage | Met a pair of Derelict thieves 678 | -9/Storage | Build established: Scavenger-Mutant 822 | -9/Storage | Identified exit to Recycling 1038 | -9/Storage | Assisted by bots powering up and referring to "LRC-V3" 1114 | -9/Storage | Lost 9 allies 1390 | -9/Storage | Discovered new exit (range 6) 1396 | -9/Storage | Entered Materials 1396 | -8/Materials | Evolved 2 slots: Propulsion x1, Utility x1 1536 | -8/Materials | Discovered new exit (range 15) 1545 | -8/Materials | Entered Factory 1545 | -7/Factory | Evolved 2 slots: Propulsion x1, Utility x1 1671 | -7/Factory | Fabricated Remote Datajack (x2) 1728 | -7/Factory | Build established: Sprinter 1750 | -7/Factory | Discovered new exit (range 15) 1753 | -7/Factory | Entered another Factory area 1753 | -6/Factory | Evolved 2 slots: Power x1, Weapon x1 1773 | -6/Factory | Discovered new exit (range 21) 1831 | -6/Factory | Discovered new exit (range 12) 1836 | -6/Factory | Entered another Factory area 1836 | -5/Factory | Evolved 2 slots: Propulsion x1, Weapon x1 1861 | -5/Factory | Lost 7 parts (1p5n1u) 2023 | -5/Factory | System corruption reached 10% 2044 | -5/Factory | Discovered new exit (range 5) 2086 | -5/Factory | Entered Upper Caves 2091 | -5/Upper Caves | Lost 6 parts (1p2n2u1w) 2175 | -5/Upper Caves | Lost 4 parts (1p3n) 2298 | -5/Upper Caves | Attracted the attention of an 0b10 base 2304 | -5/Upper Caves | Self-destructed Last Messages --------------- 02215_ Wheel destroyed. 02216_ Searching scrap... 02216_ Found Lyr. Light Armor Plating. 02216_ Found System Shield. 02216_ Found 53 Matter. 02217_ Acquired 1 matter. 02219_ System corrupted: Component data lost. 02220_ Destroyed VTOL Module. 02220_ S-27 Virus destroyed. 02225_ Acquired VTOL Module. 02230_ Acquired System Shield. 02232_ Acquired 10 matter. 02236_ AKKBOX=O KF=4YRXG|LOQR18P1 1V 02238_ Autogun fries itself beyond repair. 02253_ YBUCG35UWBS3>#QFPH9 02277_ G-50 Soldier springs to life. 02279_ System corrupted: Matter fused (-10). 02297_ Carbon-fiber Leg destroyed. 02303_ System corrupted: Energy discharge (-93). 02304_ Imp. Light Armor Plating destroyed. Map ----- +----------------------------------------------------+ | ?????????????????????????????????# ##### | | ?????????????????????????????????# ! | | ??????????????????????????????? !%! | | ???????????????????????????????? ### ##### | | ????????????????????????????????????? ##?????## % | | ?????????????????????????????????????? ?????# % | | ?????????????????????????????????????? #????## | | ??????????????????????????????????????? ####?## | | ??????????????????????????????????????? #??# | | ??????????????????????????????##???????? ##?# | | ??????????????????????????????# ??????? #?### | | ??????????????????????????????? ??????# #???# | | ???????????????????????????????? ?????# ????# | | ???????????????????????####???#### ###### #????# | | ??????????????????????## ???? ## #????# | | ??????????????????????# ??????? ## #?#### | | ??????????????????????? g#####+##### ## ### | | ??????????????????????? #" "# ## | | ???????????????????????# #" "# ## ## | | ??????????????????????## #" "# ### # | | ??????????????????????# #" "# #?## | | ??????????????????????# #" # ##?## | | ???????????????????????# #" """# #??#### | | ???????????????????????# #"T """# #?????## | | ???????????????????????# #" """# ##??????? | | ???????????????????????# @#??" "??# #????????## | | ???????????????????????#g #####/##### #?????????? | | ???????????????????????# g #?????????? | | ???????????????????????# #?????????? | | ???????????????????????#################?????????? | | ?????????????????????????????????????????????????? | | ?????????????????????????????????????????????????? | | ?????????????????????????????????????????????????? | | ?????????????????????????????????????????????????? | | ?????????????????????????????????????????????????? | | ?????????????????????????????????????????????????? | | ?????????????????????????????????????????????????? | | ?????????????????????????????????????????????????? | | ?????????????????????????????????????????????????? | | ?????????????????????????????????????????????????? | | ?????????????????????????????????????????????????? | | | | | | | | | | | | | | | | | | | +----------------------------------------------------+ Best States ------------- Heat Dissipation 78 Energy Generation 28 Energy Capacity 350 Matter Stores 300 Matter Capacity 300 Sight Range 22 Robot Scan Range 14 Terrain Scan Density 10 Armor Coverage 150 Evasion (%) 65 Recoil Reduction 2 Force Boost 20 Defensive Hacking 10 Item Schematics ----------------- None Robot Schematics ------------------ None Fabricated ------------ Remote Datajack | x2 | -7/Factory | Preloaded Alien Tech Used ----------------- None Achievements -------------- None Challenges ------------ None Game ------ Seed SmartbombSpreadMallet Manual? 0 Play Time 00:49:44 Cumulative 52.4 hours Start 2025.03.07 @ 17:56:58 End 2025.03.07 @ 19:55:11 Sessions 3 Manual Loads 0 Difficulty Rogue Special Mode None Game No. 72 Rogue 72 Adventurer 0 Explorer 0 Win Type - Total 1 Types 1/0/0/0/0/0/0/0/0 Lore% 24 Gallery% 39 Achievement% 35 Wizard Run 0 Options --------- Layout 1 ASCII 1 Keyboard 0 Movement Numpad Keybinds 0 Fullscreen 1 Font 24/Smallcaps Map View 50x35 Zoom Use 0% Tactical HUD 1 Map Filters NONE Filters NONE Steam 1 RUN: be501566-8c6b-4242-8c1b-3b9da7888ac4